{"text_format":"3","workbook":"xlsx","n_sheets":3,"sheets":["Inventaire d'homologation","Ressources d’homologation","Passif d'homologation"],"not_rendered":{"defined_names":1},"read":"whole","date_system":"1900"}

{"sheet":"Inventaire d'homologation","index":0,"n_rows":45,"n_cols":35,"rows_kept":45,"merged":[[0,1,0,30],[0,31,0,39],[1,1,5,39],[6,1,6,6],[6,7,6,39],[7,1,7,6],[7,7,7,39],[9,1,9,6],[9,7,9,39],[10,1,10,6],[10,7,10,39],[11,1,11,6],[11,7,11,20],[11,21,11,26],[11,27,11,30],[11,31,11,33],[11,34,11,39],[12,1,12,6],[12,7,12,20],[12,21,12,26],[13,1,13,6],[13,7,13,20],[13,21,13,26],[14,1,14,6],[14,7,14,20],[14,21,14,26],[15,1,15,6],[17,1,17,39],[18,1,18,6],[18,7,18,12],[18,13,18,15],[18,16,18,18],[18,19,18,26],[18,27,18,31],[18,32,18,39],[19,1,19,6],[19,7,19,12],[19,13,19,15],[19,16,19,18],[19,19,19,26],[19,27,19,31],[19,32,19,39],[20,1,20,6],[20,7,20,12],[20,13,20,15],[20,16,20,18],[20,19,20,26],[20,27,20,31],[20,32,20,39],[21,1,21,6],[21,7,21,12],[21,13,21,15],[21,16,21,18],[21,19,21,26],[21,27,21,31],[21,32,21,39],[22,1,22,6],[22,7,22,12],[22,13,22,15],[22,16,22,18],[22,19,22,26],[22,27,22,31],[22,32,22,39],[23,1,23,6],[23,7,23,12],[23,13,23,15],[23,16,23,18],[23,19,23,26],[23,27,23,31],[23,32,23,39],[25,1,25,39],[26,1,26,6],[26,7,26,12],[26,13,26,18],[26,19,26,26],[26,27,26,31],[26,32,26,39],[27,1,27,6],[27,7,27,12],[27,13,27,18],[27,19,27,26],[27,27,27,31],[27,32,27,39],[28,1,28,6],[28,7,28,12],[28,13,28,18],[28,19,28,26],[28,27,28,31],[28,32,28,39],[29,1,29,6],[29,7,29,12],[29,13,29,18],[29,19,29,26],[29,27,29,31],[29,32,29,39],[30,1,30,6],[30,7,30,12],[30,13,30,18],[30,19,30,26],[30,27,30,31],[30,32,30,39],[31,1,31,6],[31,7,31,12],[31,13,31,18],[31,19,31,26],[31,27,31,31],[31,32,31,39],[33,1,33,12],[33,14,33,39],[34,1,34,12],[34,14,34,21],[34,22,34,25],[34,26,34,33],[34,34,34,39],[35,2,35,12],[35,14,35,21],[35,22,35,25],[35,26,35,33],[35,34,35,39],[36,2,36,12],[36,14,36,21],[36,22,36,25],[36,26,36,33],[36,34,36,39],[37,2,37,12],[37,14,37,21],[37,22,37,25],[37,26,37,33],[37,34,37,39],[38,2,38,12],[38,14,38,21],[38,22,38,25],[38,26,38,33],[38,34,38,39],[39,2,39,12],[39,14,39,21],[39,22,39,25],[39,26,39,33],[39,34,39,39],[40,2,40,12],[40,14,40,21],[40,22,40,25],[40,26,40,33],[40,34,40,39],[41,2,41,12],[41,14,41,21],[41,22,41,25],[41,26,41,33],[41,34,41,39],[42,2,42,12],[42,14,42,21],[42,22,42,25],[42,26,42,33],[42,34,42,38],[43,2,43,12],[43,14,43,21],[43,22,43,25],[43,26,43,33],[43,34,43,39],[44,2,44,12],[44,14,44,21],[44,22,44,25],[44,26,44,33],[44,34,44,39]]}
[]
[null,"Inventaire d'homologation"]
[]
[]
[]
[]
[null,"Nom de l'exécuteur ou des exécuteurs",{"$nulls":5},"Allan Mattsson"]
[null,"Informations de contact",{"$nulls":5},"4567 Main St Buffalo, NY 98052"]
[]
[null,"Nom du défunt",{"$nulls":5},"August Bergquist"]
[null,"Rue",{"$nulls":5},"6789 Main St."]
[null,"Ville",{"$nulls":5},"Buffalo",{"$nulls":13},"Région",{"$nulls":5},"NY",{"$nulls":3},"Code postal",null,null,98052]
[null,"Numéro de sécurité sociale",{"$nulls":5},"AAA-GG-SSSS",{"$nulls":13},"Profession",{"$nulls":5},"Dentiste"]
[null,"Date de naissance",{"$nulls":5},"1965-12-08",{"$nulls":13},"Lieu de naissance",{"$nulls":5},"NY"]
[null,"Date de décès",{"$nulls":5},{"$f":"TODAY()-3","v":"2022-05-07"},{"$nulls":13},"Lieu de décès",{"$nulls":5},"NY"]
[null,"Informations supplémentaires"]
[]
[null,"  Conjoint, enfants et autres personnes à charge"]
[null,"Nom",{"$nulls":5},"Relation",{"$nulls":5},"Dépendant",null,null,"Âge",null,null,"Adresse",{"$nulls":7},"Numéro de téléphone",{"$nulls":4},"Courrier électronique"]
[null,"Marie Méthot",{"$nulls":5},"Représentant personnel",{"$nulls":5},"Non",null,null,30]
[null,"Camille Brunelle",{"$nulls":5},"Conjoint",{"$nulls":5},"Oui",null,null,35]
[null,"Alexander Martensson",{"$nulls":5},"Enfant",{"$nulls":5},"Oui",null,null,12]
[]
[]
[]
[null,"Conseillers professionnels"]
[null,"Type de conseiller",{"$nulls":5},"Personne à contacter",{"$nulls":5},"Société",{"$nulls":5},"Adresse",{"$nulls":7},"Numéro de téléphone",{"$nulls":4},"Courrier électronique"]
[null,"Comptable"]
[null,"Avocat/Notaire"]
[null,"Autres"]
[]
[]
[]
[null,"  Liste de contrôle pour l'homologation",{"$nulls":12},"  Inventaires d'homologation"]
[null,"    Éléments de la liste de contrôle",{"$nulls":12},"Ressources d’homologation",{"$nulls":7},"Valeur (€)",{"$nulls":3},"Passif d'homologation",{"$nulls":7},"Valeur (€)"]
[null,"✔","Dernières volontés, testament ou tout autre document",{"$nulls":11},{"$f":"'Ressources d’homologation'!B12","v":"Comptes bancaires"},{"$nulls":7},{"$f":"'Ressources d’homologation'!G20","v":{"v":0,"d":"0.00 €"}},{"$nulls":3},"Mortgages",{"$nulls":7},{"v":0,"d":"0.00 €"}]
[null,"✔","Contrat de location de coffre-fort et clés",{"$nulls":11},{"$f":"'Ressources d’homologation'!B22","v":"Investissements personnels"},{"$nulls":7},{"$f":"'Ressources d’homologation'!G30","v":{"v":0,"d":"0.00 €"}},{"$nulls":3},"Personal Loans and Lines of Credit",{"$nulls":7},{"v":0,"d":"0.00 €"}]
[null,"✖","Mots de passe pour les ordinateurs et les comptes en ligne",{"$nulls":11},{"$f":"'Ressources d’homologation'!B32","v":"Intérêts commerciaux"},{"$nulls":7},{"$f":"'Ressources d’homologation'!G40","v":{"v":0,"d":"0.00 €"}},{"$nulls":3},"Business Interests",{"$nulls":7},{"v":0,"d":"0.00 €"}]
[null,"✔","Contrats de fiducie entre vifs",{"$nulls":11},{"$f":"'Ressources d’homologation'!B42","v":"Immobilier"},{"$nulls":7},{"$f":"'Ressources d’homologation'!G50","v":{"v":0,"d":"0.00 €"}},{"$nulls":3},"Credit Cards",{"$nulls":7},{"v":0,"d":"0.00 €"}]
[null,"✔","Assurance vie, santé/accidents et polices d'assurance",{"$nulls":11},{"$f":"'Ressources d’homologation'!B52","v":"Plans de pension"},{"$nulls":7},{"$f":"'Ressources d’homologation'!G60","v":{"v":0,"d":"0.00 €"}},{"$nulls":3},"Other Liabilities",{"$nulls":7},{"v":0,"d":"0.00 €"}]
[null,"✔","États financiers",{"$nulls":11},{"$f":"'Ressources d’homologation'!B62","v":"Assurance"},{"$nulls":7},{"$f":"'Ressources d’homologation'!G70","v":{"v":0,"d":"0.00 €"}}]
[null,"✔","Déclarations d'impôts sur le revenu pour les trois dernières années",{"$nulls":11},{"$f":"'Ressources d’homologation'!B72","v":"Prêts et hypothèques privés"},{"$nulls":7},{"$f":"'Ressources d’homologation'!G80","v":{"v":0,"d":"0.00 €"}}]
[null,"✔","Certificats de naissance et de décès",{"$nulls":11},{"$f":"'Ressources d’homologation'!B82","v":"Intérêts dans d'autres successions et fiducies"},{"$nulls":7},{"$f":"'Ressources d’homologation'!G90","v":{"v":0,"d":"0.00 €"}}]
[null,"✖","Actes de propriété, hypothèques et déclarations de bail",{"$nulls":11},{"$f":"'Ressources d’homologation'!B92","v":"Effets personnels et autres biens"},{"$nulls":7},{"$f":"'Ressources d’homologation'!G100","v":{"v":0,"d":"0.00 €"}}]
[null,"☐","Factures et notes impayées",{"$nulls":11},"Total de ressources",{"$nulls":7},{"$f":"'Ressources d’homologation'!G10","v":{"v":0,"d":"0.00 €"}},{"$nulls":3},"Total des passifs",{"$nulls":7},{"$f":"SUM(AI36:AN44)","v":{"v":0,"d":"0.00 €"}}]

{"sheet":"Ressources d’homologation","index":1,"n_rows":100,"n_cols":8,"rows_kept":100,"merged":[[0,1,0,7],[1,1,5,7],[6,1,7,7],[11,1,11,7],[12,1,12,7],[21,1,21,7],[22,1,22,7],[31,1,31,7],[32,1,32,7],[41,1,41,7],[42,1,42,7],[51,1,51,7],[52,1,52,7],[61,1,61,7],[62,1,62,7],[71,1,71,7],[72,1,72,7],[81,1,81,7],[82,1,82,7],[91,1,91,7],[92,1,92,7]]}
[]
[null,"Ressources d’homologation"]
[]
[]
[]
[]
[null,"Utilisez cette feuille de travail pour créer un inventaire des ressources d'homologation. Vous devrez déterminer la valeur marchande de chaque actif successoral à la date du décès. Examinez tous les dossiers, y compris les états financiers, les polices d'assurance et les déclarations fiscales pour obtenir les valeurs marchandes. Vous pouvez également avoir besoin d'une évaluation de vos biens personnels (œuvres d'art, collections, antiquités, etc.). Veillez à inclure également dans l'inventaire tout actif étranger, tel que des biens immobiliers, des titres ou des intérêts commerciaux à l'étranger. Vous pouvez demander l'aide d'un professionnel pour obtenir une valeur marchande exacte des biens étrangers."]
[]
[]
[null,"Total des actifs",{"$nulls":4},{"$f":"tblBankAccounts[[#Totals],[Solde ]]+tblPersonalInvestments[[#Totals],[Valeur du marché]]+tblBusinessInterests[[#Totals],[Valeur ]]+tblRealEstate[[#Totals],[Prix du marché]]+tblPensionPlans[[#Totals],[Valeur ]]+tblInsurance[[#Totals],[Valeur en espèces ]]+tblMortgages[[#Totals],[Solde dû ]]+tblTrusts[[#Totals],[Montant de distribution]]+tblOtherAssets[[#Totals],[Valeur ]]","v":{"v":0,"d":"0.00 €"}}]
[]
[null,"Comptes bancaires"]
[null,"Énumérez tous les comptes bancaires, y compris l'argent liquide, les chèques de voyage, les mandats et les comptes auprès de banques commerciales, de caisses d'épargne, de coopératives de crédit, etc. Indiquez tous les noms figurant sur le compte et la valeur réelle en espèces, qui correspond au montant exact en dollars et en monnaie au moment du décès."]
[null,"Institution financière ","Adresse","Téléphone","Numéro de compte","Type de compte","Solde ","Notes"]
[]
[]
[]
[]
[]
[null,"Total",{"$nulls":4},{"$f":"SUBTOTAL(109,tblBankAccounts[[Solde ]])","v":{"v":0,"d":"0.00 €"}}]
[]
[null,"Investissements personnels"]
[null,"Énumérer les comptes au comptant, les comptes sur marge, les comptes d'épargne libre d'impôt, les régimes enregistrés d'épargne-retraite (REER), les fonds enregistrés de revenu de retraite (FERR), les FERR immobilisés, les REER immobilisés, les fonds de revenu viager, les fonds de revenu de retraite prescrits, les régimes enregistrés d'épargne-études, les rentes, etc."]
[null,"Société","Adresse","Téléphone","Numéro de compte","Bénéficiaire","Valeur du marché","Notes"]
[]
[]
[]
[]
[]
[null,"Total",{"$nulls":4},{"$f":"SUBTOTAL(109,tblPersonalInvestments[Valeur du marché])","v":{"v":0,"d":"0.00 €"}}]
[]
[null,"Intérêts commerciaux"]
[null,"Indiquez tous les intérêts commerciaux, y compris les entreprises individuelles, les cabinets professionnels, les sociétés, les partenariats, les sociétés à responsabilité limitée et les partenariats, les coentreprises et autres entités commerciales non cotées en bourse. "]
[null,"Nom de l’entreprise","Adresse","Téléphone","Contact","Type","Valeur ","Notes"]
[]
[]
[]
[]
[]
[null,"Total",{"$nulls":4},{"$f":"SUBTOTAL(109,tblBusinessInterests[[Valeur ]])","v":{"v":0,"d":"0.00 €"}}]
[]
[null,"Immobilier"]
[null,"Énumérez tous les biens immobiliers dont le défunt et/ou le conjoint/partenaire survivant du défunt sont propriétaires, copropriétaires ou ont un intérêt quelconque, y compris les biens achetés dans le cadre de projets récréatifs et de multipropriétés. Obtenez des copies des actes de propriété. Fournissez une description du bien immobilier avec son adresse physique. Indiquez la juste valeur marchande de la propriété, selon l'évaluation la plus récente de l'évaluateur fiscal."]
[null,"Adresse","Titre détenu par","Téléphone","Contact","Prix d’achat","Prix du marché","Notes"]
[]
[]
[]
[]
[]
[null,"Total",{"$nulls":3},{"$f":"SUBTOTAL(109,tblRealEstate[Prix d’achat])","v":{"v":0,"d":"0.00 €"}},{"$f":"SUBTOTAL(109,tblRealEstate[Prix du marché])","v":{"v":0,"d":"0.00 €"}}]
[]
[null,"Plans de pension"]
[null,"Énumérez les prestations déterminées, les achats d'argent ou les cotisations déterminées, le RPDB ou le REER collectif, etc."]
[null,"Société","Téléphone","T&ype N","Bénéficiaire","Courrier électronique","Valeur ","Notes"]
[]
[]
[]
[]
[]
[null,"Total",{"$nulls":4},{"$f":"SUBTOTAL(109,tblPensionPlans[[Valeur ]])","v":{"v":0,"d":"0.00 €"}}]
[]
[null,"Assurance"]
[null,"Incluez dans les actifs non soumis à l'impôt sur le revenu les fiducies vivantes, les polices d'assurance-vie avec des bénéficiaires désignés et les comptes d'investissement transférés au décès. Si le tribunal s'enquiert de ces biens, l'exécuteur peut facilement faire référence à la liste des biens non soumis à l'homologation et expliquer leur absence de l'inventaire d'homologation."]
[null,"Émetteur","Numéro de police","Téléphone","Bénéficiaire","Valeur nominale ","Valeur en espèces ","Notes"]
[]
[]
[]
[]
[]
[null,"Total",{"$nulls":3},{"$f":"SUBTOTAL(109,tblInsurance[[Valeur nominale ]])","v":{"v":0,"d":"0.00 €"}},{"$f":"SUBTOTAL(109,tblInsurance[[Valeur en espèces ]])","v":{"v":0,"d":"0.00 €"}}]
[]
[null,"Prêts et hypothèques privés"]
[null,"Dressez la liste des prêts privés et des hypothèques pour lesquels la personne décédée était le prêteur."]
[null,"Nom de l'emprunteur","Adresse","Téléphone","Type","Montant original","Solde dû ","Notes"]
[]
[]
[]
[]
[]
[null,"Total",{"$nulls":3},{"$f":"SUBTOTAL(109,tblMortgages[Montant original])","v":{"v":0,"d":"0.00 €"}},{"$f":"SUBTOTAL(109,tblMortgages[[Solde dû ]])","v":{"v":0,"d":"0.00 €"}}]
[]
[null,"Intérêts dans d'autres successions et fiducies"]
[null,"Dressez la liste des actifs enregistrés au nom de la personne décédée et détenus pour le compte d'autres personnes (par exemple, les actifs détenus par la personne décédée en tant que fiduciaire ou les actifs détenus en vertu d'une procuration)."]
[null,"Nom de la succession ou de la fiducie","Nom de l'exécuteur/du fiduciaire","Téléphone","Adresse","Courrier électronique","Montant de distribution","Notes"]
[]
[]
[]
[]
[]
[null,"Total",{"$nulls":4},{"$f":"SUBTOTAL(109,tblTrusts[Montant de distribution])","v":{"v":0,"d":"0.00 €"}}]
[]
[null,"Effets personnels et autres biens"]
[null,"Dressez la liste de tous les objets personnels, par exemple : voitures, bijoux, objets d'art, antiquités, meubles. Incluez les objets qui ont pu être conservés dans un coffre-fort ou dans une chambre forte."]
[null,"Description de l’article","Emplacement","Téléphone","Contact","Bénéficiaire","Valeur ","Notes"]
[]
[]
[]
[]
[]
[null,"Total",{"$nulls":4},{"$f":"SUBTOTAL(109,tblOtherAssets[[Valeur ]])","v":{"v":0,"d":"0.00 €"}}]

{"sheet":"Passif d'homologation","index":2,"n_rows":58,"n_cols":8,"rows_kept":58,"merged":[[0,1,0,7],[1,1,5,7],[6,1,6,7],[10,1,10,7],[20,1,20,7],[30,1,30,7],[40,1,40,7],[50,1,50,7]]}
[]
[null,"Passif d'homologation"]
[]
[]
[]
[]
[null,"Utilisez cette feuille de calcul pour saisir les détails des dettes de la succession, tant nationales qu'étrangères. Vous aurez besoin d'une évaluation de chaque passif à la date du décès."]
[]
[null,"Total des actifs",{"$nulls":4},{"$f":"SUM(G18,G28,G38,G48,G58)","v":{"v":0,"d":"0.00 €"}}]
[]
[null,"Hypothèques"]
[null,"Institution financière ","Adresse","Téléphone","Titre détenu par","Numéro de compte","Solde ","Notes"]
[]
[]
[]
[]
[]
[null,"Total",{"$nulls":4},{"$f":"SUBTOTAL(109,tblBankAccounts2[[Solde ]])","v":{"v":0,"d":"0.00 €"}}]
[]
[]
[null,"Prêts personnels et lignes de crédit"]
[null,"Institution financière","Adresse","Téléphone"," Numéro de compte","Type","Solde ","Notes"]
[]
[]
[]
[]
[]
[null,"Total",{"$nulls":4},{"$f":"SUBTOTAL(109,tblPersonalInvestments3[[Solde ]])","v":{"v":0,"d":"0.00 €"}}]
[]
[]
[null,"Intérêts commerciaux"]
[null,"Nom de l’entreprise","Adresse"," Téléphone"," Contact","Type","Valeur ","Notes"]
[]
[]
[]
[]
[]
[null,"Total",{"$nulls":4},{"$f":"SUBTOTAL(109,tblBusinessInterests4[[Valeur ]])","v":{"v":0,"d":"0.00 €"}}]
[]
[]
[null,"Cartes de crédit"]
[null,"Sociétés de carte de crédit","Adresse de la société","Téléphone","Numéro de carte","Date d’expiration ","Solde ","Notes"]
[]
[]
[]
[]
[]
[null,"Total",{"$nulls":3},{"$f":"SUBTOTAL(109,tblRealEstate5[[Date d’expiration ]])","v":{"v":0,"d":"0.00 €"}},{"$f":"SUBTOTAL(109,tblRealEstate5[[Solde ]])","v":{"v":0,"d":"0.00 €"}}]
[]
[]
[null,"Autres passifs"]
[null,"Description de l’article","Emplacement","Téléphone","Contact","Bénéficiaire","Valeur ","Notes"]
[]
[]
[]
[]
[]
[null,"Total",{"$nulls":4},{"$f":"SUBTOTAL(109,tblPensionPlans6[[Valeur ]])","v":{"v":0,"d":"0.00 €"}}]